Cogmind - Beta 9.6 @@@ ROGUE MODE // 2020.05.17 @ 17:24:16 Player: alice_fexa Result: Escaped! Performance ------------- Evolutions (9) 4500 Regions Visited (36) 7200 Robots Destroyed (217) 1085 Value Destroyed (5589) 5589 Prototype IDs (132) 2640 Alien Tech Used (3) 600 Bonus (7166) 7166 TOTAL SCORE: 28780 Bonus ------- High Alert Combat Kills 110 Follower Combat Kills 156 Met Data Miner 300 Met Imprinter 300 Met Zhirov 300 Met Warlord at Base 500 MAIN.C Attacked Warlord 500 Met Warlord at Research 2000 Win 3000 Cogmind --------- Core Integrity 1496/1600 Matter 270/300 Energy 99/100 System Corruption 0% Temperature Cool (262) Movement Core (50) Location To Epsilon Eridani Parts ------- > --- POWER (2) -------- (None) > --- PROPULSION (2) --- (None) > --- UTILITY (16) ----- (None) > --- WEAPON (6) ------- (None) > --- INVENTORY (4) ---- Mini Fusion Reactor Improved Diametric Drive Vibroblade Enhanced Force Lance Peak State ------------ > --- POWER ------------ Mini Fusion Reactor Light Quantum Reactor > --- PROPULSION ------- Experimental Cesium-ion Thruster Improved Diametric Drive > --- UTILITY ---------- Medium Storage Unit Large Storage Unit Inertial Stasis Machine Quantum Shading Machine Experimental Sensor Array Experimental Signal Interpreter Advanced Reaction Control System Experimental Utility Shielding Centrium Light Armor Plating Advanced Hacking Suite Advanced Hacking Suite Advanced Hacking Suite System Mapper System Mapper Experimental System Shield Ghost Barrier > --- WEAPON ----------- BFG-9k Vortex Edition > --- INVENTORY -------- Mini Fusion Reactor Improved Diametric Drive Improved Diametric Drive Experimental Utility Shielding Vibroblade Enhanced Force Lance [Rating: 223] Favorites ----------- Power Micro Fission Core Engine Ion Engine Power Core Micro Fission Core Reactor Mini Fusion Reactor Propulsion Improved Cesium-ion Thruster Treads Light Treads Wheel Wheel Flight Unit Improved Cesium-ion Thruster Utility Advanced Hacking Suite Device Experimental Sensor Array Storage Medium Storage Unit Processor Experimental Signal Interpreter Hackware Advanced Hacking Suite Protection Experimental Utility Shielding Weapon Improved Datajack Energy Gun Medium Laser Energy Cannon BFG-9k Vortex Edition Ballistic Gun Enhanced Autogun Ballistic Cannon Light Cannon Launcher Mini Smartbomb Launcher Impact Weapon Thunder Hammer Slashing Weapon Power Sword Piercing Weapon Plasma Lance Special Melee Weapon Improved Datajack Build | -11 -10 -10 -10 -9 -8 -7 -7 -7 -7 -7 -7 -6 -6 -6 -6 -6 -6 -6 -5 -5 -5 -5 -5 -5 -5 -4 -4 -4 -4 -4 -4 -4 -3 -3 -2 -1 ------- Run | Scr Mat Min Exi Min Mat Fac Was Fac Low Low Zio Pro Fac Was Fac Low Low Dat Pro Fac Was Fac Upp Upp Zhi Pro Fac Was Fac Upp Upp War Pro Res Res Acc Slots Evolved 18 | . . . . . 4 2 . . . . . . 2 . . . . . . 2 . . . . . . 2 . . . . . . 2 2 2 Power . | . . . . . . . . . . . . . . . . . . . . . . . . . . . . . . . . . . . . . Propulsion . | . . . . . . . . . . . . . . . . . . . . . . . . . . . . . . . . . . . . . Utility 14 | . . . . . 4 2 . . . . . . 2 . . . . . . 2 . . . . . . 2 . . . . . . 1 1 . Weapon 4 | . . . . . . . . . . . . . . . . . . . . . . . . . . . . . . . . . . 1 1 2 Parts Attached 298 | 7 19 2 2 3 79 40 3 8 2 . 6 2 10 1 9 6 3 6 1 11 3 6 1 . 7 . 17 . 12 1 1 13 . 2 5 10 Power 45 | 2 3 . . 1 15 3 . 1 . . 2 . 1 . . 1 1 . 1 2 . 1 . . . . 5 . 2 . . 3 . . . 1 Engine 12 | 2 3 . . 1 6 . . . . . . . . . . . . . . . . . . . . . . . . . . . . . . . Core 23 | . . . . . 9 3 . 1 . . 2 . 1 . . 1 1 . 1 2 . . . . . . 1 . 1 . . . . . . . Reactor 10 | . . . . . . . . . . . . . . . . . . . . . . 1 . . . . 4 . 1 . . 3 . . . 1 Propulsion 53 | 2 5 1 . . 17 11 . 3 . . . . . . 2 2 1 . . 1 1 1 . . 1 . 1 . 2 . . 2 . . . . Treads 12 | 1 1 1 . . 9 . . . . . . . . . . . . . . . . . . . . . . . . . . . . . . . Leg . | . . . . . . . . . . . . . . . . . . . . . . . . . . . . . . . . . . . . . Wheel 15 | 1 4 . . . 8 2 . . . . . . . . . . . . . . . . . . . . . . . . . . . . . . Hover . | . . . . . . . . . . . . . . . . . . . . . . . . . . . . . . . . . . . . . Flight 26 | . . . . . . 9 . 3 . . . . . . 2 2 1 . . 1 1 1 . . 1 . 1 . 2 . . 2 . . . . Utility 111 | 1 4 . . . 24 14 3 2 . . 2 . 7 1 6 2 1 3 . 6 2 4 . . 2 . 7 . 4 . . 7 . 1 5 3 Device 49 | . 1 . . . 12 5 2 . . . . . 3 1 3 2 . 1 . 2 2 2 . . . . 3 . 2 . . 5 . . 1 2 Storage 17 | 1 3 . . . 2 3 . 1 . . . . . . . . . . . . . . . . . . 3 . 1 . . . . . 3 . Processor 4 | . . . . . 2 . . . . . . . . . 1 . . . . . . . . . . . . . . . . 1 . . . . Hackware 21 | . . . . . 1 3 1 1 . . 2 . 4 . 2 . 1 1 . 2 . 1 . . . . 1 . . . . 1 . . . . Protection 20 | . . . . . 7 3 . . . . . . . . . . . 1 . 2 . 1 . . 2 . . . 1 . . . . 1 1 1 Artifact . | . . . . . . . . . . . . . . . . . . . . . . . . . . . . . . . . . . . . . Weapon 89 | 2 7 1 2 2 23 12 . 2 2 . 2 2 2 . 1 1 . 3 . 2 . . 1 . 4 . 4 . 4 1 1 1 . 1 . 6 Energy Gun 16 | 1 6 1 . 1 7 . . . . . . . . . . . . . . . . . . . . . . . . . . . . . . . Energy Cannon 2 | . . . . . . . . . . . . . . . . . . . . . . . . . . . . . . . . . . . . 2 Ballistic Gun 15 | 1 . . . . 9 5 . . . . . . . . . . . . . . . . . . . . . . . . . . . . . . Ballistic Cannon 2 | . . . . . 2 . . . . . . . . . . . . . . . . . . . . . . . . . . . . . . . Launcher 16 | . . . 1 . 3 1 . 1 1 . 1 . . . . 1 . 1 . . . . 1 . 1 . 1 . 1 . . 1 . . . 1 Special Weapon . | . . . . . . . . . . . . . . . . . . . . . . . . . . . . . . . . . . . . . Impact Weapon 7 | . . . . . 1 3 . . . . . . . . . . . . . . . . . . . . . . 3 . . . . . . . Slashing Weapon 5 | . . . . . . . . . 1 . . 1 1 . . . . 1 . . . . . . 1 . . . . . . . . . . . Piercing Weapon 7 | . . . . . . 1 . . . . . 1 . . . . . . . 1 . . . . 1 . . . . 1 . . . . . 2 Special Melee Weapon 19 | . 1 . 1 1 1 2 . 1 . . 1 . 1 . 1 . . 1 . 1 . . . . 1 . 3 . . . 1 . . 1 . 1 Unidentified Prototypes 16 | . . . . . 1 1 1 . . . . . . . 1 1 . . . . . . . . 3 . . . 2 . . 4 . . 1 1 Parts Lost 25 | . 3 1 . . 13 2 . . . . . . . . 1 . . . . 1 . . . . . . . . . . . . . . 1 3 Power 3 | . . . . . 1 1 . . . . . . . . . . . . . . . . . . . . . . . . . . . . . 1 Propulsion 5 | . 1 . . . 3 . . . . . . . . . . . . . . 1 . . . . . . . . . . . . . . . . Utility 7 | . . . . . 4 1 . . . . . . . . 1 . . . . . . . . . . . . . . . . . . . . 1 Weapon 10 | . 2 1 . . 5 . . . . . . . . . . . . . . . . . . . . . . . . . . . . . 1 1 Highest Loss Streak 2 | . 2 1 . . 2 1 . . . . . . . . 1 . . . . 1 . . . . . . . . . . . . . . 1 2 Average Slot Usage (%) 99 | . 97 99 100 100 98 99 99 100 100 100 100 100 99 100 99 96 99 96 94 99 100 99 100 100 99 100 99 100 99 100 100 99 100 100 95 85 Engine 2 | . 14 14 14 14 4 . . . . . . . . . . . . . . . . . . . . . . . . . . . . . . . Core 5 | . . . . . 4 5 7 7 7 7 7 7 6 6 6 6 11 8 7 11 11 7 5 5 5 5 2 . 4 5 5 . . . . . Reactor 1 | . . . . . . . . . . . . . . . . . . . . . . 3 5 5 5 5 7 10 5 5 5 9 10 9 8 7 Treads 2 | . 14 14 14 14 9 1 . . . . . . . . . . . . . . . . . . . . . . . . . . . . . . Wheel 2 | . 13 14 14 14 8 1 . . . . . . . . . . . . . . . . . . . . . . . . . . . . . . Flight 8 | . . . . . . 11 15 15 15 15 15 15 13 13 13 12 12 12 12 11 11 11 11 11 11 11 10 10 9 10 10 10 10 9 8 7 Device 12 | . . . . . 9 15 15 15 15 15 15 15 19 20 20 18 12 8 12 11 16 13 11 11 11 11 14 15 15 15 15 14 15 13 16 13 Storage 10 | . 26 28 28 28 18 9 7 7 7 7 7 7 6 6 6 6 6 6 6 5 5 5 5 5 5 5 7 10 10 10 10 10 10 9 8 7 Processor 5 | . . . . . 8 7 7 7 7 7 7 7 6 6 6 6 6 6 6 5 5 5 5 5 5 5 5 5 5 5 5 5 5 4 4 3 Hackware 26 | . . . . . 8 26 29 30 30 30 30 30 32 33 32 32 36 37 37 38 38 38 38 38 38 38 37 35 35 35 35 35 35 31 29 26 Protection 3 | . . . . . 8 1 . . . . . . . . . . . 3 . 4 . 2 5 5 4 5 5 5 4 5 5 5 5 9 7 7 Energy Gun 2 | . 17 27 14 14 3 . . . . . . . . . . . . . . . . . . . . . . . . . . . . . . . Ballistic Gun 2 | . 9 . . . 12 2 . . . . . . . . . . . . . . . . . . . . . . . . . . . . . . Launcher 1 | . . . . 14 . . . . 2 7 4 7 . . . 5 6 2 6 . . . 4 5 . 5 1 . . 5 4 . 5 4 4 1 Slashing Weapon 1 | . . . . . . . . . 7 7 7 4 6 6 6 6 6 6 6 1 . . . . . . . . . . . . . . . . Piercing Weapon 2 | . . . . . . 3 7 7 . . . 2 . . . . . . . 3 5 5 5 5 5 5 5 5 2 3 5 5 5 4 4 4 Special Melee Weapon 3 | . . . 13 . . 5 7 6 4 . 3 . 6 6 5 . . 2 . 5 5 5 . . 5 . 3 5 4 . . 5 . 4 4 2 Naked Turns . | . . . . . . . . . . . . . . . . . . . . . . . . . . . . . . . . . . . . . Heaviest Build 56 | 12 25 26 26 29 53 56 18 18 18 18 18 18 20 21 21 20 22 22 22 25 26 28 29 29 29 29 44 41 46 46 45 52 47 51 52 52 Greatest Support 52 | 10 20 20 10 10 20 28 18 20 20 20 20 20 20 20 22 20 22 22 22 25 26 33 31 31 32 32 48 48 52 48 48 52 52 52 52 52 Greatest Overweight (x) 5 | 1 4 2 2 2 5 3 . . . . . . . 1 . . . . . . . . . . . . . . . . . . . . . . Average Overweight (x) . | . 1 1 2 2 3 . . . . . . . . . . . . . . . . . . . . . . . . . . . . . . . Largest Inventory Capacity 20 | 6 12 12 12 12 16 18 8 8 8 8 8 8 8 8 8 8 8 8 8 8 8 8 8 8 8 8 16 12 14 14 14 14 14 14 20 14 Average Capacity 10 | 5 10 12 12 12 15 9 8 8 8 8 8 8 8 8 8 8 8 8 8 8 8 8 8 8 8 8 10 12 13 14 14 14 14 14 14 14 Most Carried 16 | 4 12 12 12 12 16 16 8 8 8 8 8 8 8 8 8 8 8 8 8 8 8 8 8 8 8 8 12 12 14 14 14 14 14 14 14 14 Average Carried 10 | 2 9 11 12 12 15 9 7 7 8 8 8 8 7 8 7 7 7 7 7 7 8 8 8 8 7 8 9 11 13 14 14 13 14 13 13 12 Final Capacity 16 | 6 12 12 12 12 16 8 8 8 8 8 8 8 8 8 8 8 8 8 8 8 8 8 8 8 8 8 12 12 14 14 14 14 14 14 14 4 Final Carried 16 | 4 12 12 12 12 16 8 8 8 8 8 8 8 8 8 8 8 8 8 7 8 8 8 8 8 8 8 12 12 14 14 14 14 14 14 14 4 Class Distribution -------------------- 51% | Wizard-Sprinter 19% | Hacker-Sprinter 13% | Scavenger-Mutant 10% | Mutant Dominant Class ---------------- Mutant | -10/Materials Mutant | -10/Mines Mutant | -10/Exiles Scavenger-Mutant | -9/Mines Scavenger-Mutant | -8/Materials Hacker-Sprinter | -7/Factory Hacker-Sprinter | -7/Waste Hacker-Sprinter | -7/Factory Hacker-Sprinter | -7/Lower Caves Hacker-Sprinter | -7/Lower Caves Hacker-Sprinter | -7/Zion Hacker-Sprinter | -6/Proximity Caves Hacker-Sprinter | -6/Factory Wizard-Sprinter | -6/Waste Wizard-Sprinter | -6/Factory Wizard-Sprinter | -6/Lower Caves Wizard-Sprinter | -6/Lower Caves Wizard-Sprinter | -6/Data Miner Wizard-Sprinter | -5/Proximity Caves Wizard-Sprinter | -5/Factory Wizard-Sprinter | -5/Waste Wizard-Mutant | -5/Factory Wizard-Sprinter | -5/Upper Caves Wizard-Sprinter | -5/Upper Caves Wizard-Sprinter | -5/Zhirov Wizard-Sprinter | -4/Proximity Caves Wizard-Sprinter | -4/Factory Wizard-Sprinter | -4/Waste Wizard-Sprinter | -4/Factory Wizard-Sprinter | -4/Upper Caves Wizard-Sprinter | -4/Upper Caves Wizard-Sprinter | -4/Warlord Wizard-Sprinter | -3/Proximity Caves Wizard-Sprinter | -3/Research Wizard-Sprinter | -2/Research Wizard-Sprinter | -1/Access Resources | -11 -10 -10 -10 -9 -8 -7 -7 -7 -7 -7 -7 -6 -6 -6 -6 -6 -6 -6 -5 -5 -5 -5 -5 -5 -5 -4 -4 -4 -4 -4 -4 -4 -3 -3 -2 -1 ----------- Run | Scr Mat Min Exi Min Mat Fac Was Fac Low Low Zio Pro Fac Was Fac Low Low Dat Pro Fac Was Fac Upp Upp Zhi Pro Fac Was Fac Upp Upp War Pro Res Res Acc Matter Collected 5235 | 212 309 40 . 92 1940 516 30 90 17 113 30 50 50 . 186 . 100 . 100 105 . 44 105 114 107 10 147 . 283 10 27 173 7 93 60 75 Remotely 10 | . 10 . . . . . . . . . . . . . . . . . . . . . . . . . . . . . . . . . . . Salvage Created 8171 | . 935 107 . . 3015 518 . 437 . 11 . 60 87 . 605 . . 30 80 310 . 44 41 50 109 24 323 . 686 . 45 . 52 88 238 276 Parts 412 | . 51 6 . . 166 22 . 29 . 3 . . 6 . 26 . . 4 3 16 . 3 3 2 1 . 12 . 15 . 5 . 6 3 10 20 Haulers Intercepted 28 | . 2 . . . 5 4 . 2 . . . . . . 3 . . . . 2 . . . . . . 1 . 5 . . . . 1 2 1 Recyclers Shooed 4 | . . . . 2 2 . . . . . . . . . . . . . . . . . . . . . . . . . . . . . . . Parts Field Recycled . | . . . . . . . . . . . . . . . . . . . . . . . . . . . . . . . . . . . . . Retrieved Matter . | . . . . . . . . . . . . . . . . . . . . . . . . . . . . . . . . . . . . . Parts Self-Destructed 94 | . . . . . . . . . . 8 . . . . . 4 6 . 2 . . . 3 2 1 . . . . . 5 60 3 . . . Prevented 11 | . . . . . . . . . . . . . . . . . . . . . . . . . . . . . . . . 11 . . . . Kills | -11 -10 -10 -10 -9 -8 -7 -7 -7 -7 -7 -7 -6 -6 -6 -6 -6 -6 -6 -5 -5 -5 -5 -5 -5 -5 -4 -4 -4 -4 -4 -4 -4 -3 -3 -2 -1 ------- Run | Scr Mat Min Exi Min Mat Fac Was Fac Low Low Zio Pro Fac Was Fac Low Low Dat Pro Fac Was Fac Upp Upp Zhi Pro Fac Was Fac Upp Upp War Pro Res Res Acc Combat Hostiles Destroyed 115 | . 15 2 . . 57 2 . 3 . 3 . . . . . . . . 4 1 . . 8 1 . . 4 . 5 . 3 . 4 . . 3 Melee 4 | . . . . . . . . . . . . . . . . . . . . 1 . . . 1 . . 1 . . . . . . . . 1 Guns 59 | . 14 2 . . 41 2 . . . . . . . . . . . . . . . . . . . . . . . . . . . . . . Cannons 7 | . . . . . 5 . . . . . . . . . . . . . . . . . . . . . . . . . . . . . . 2 AOE 45 | . 1 . . . 11 . . 3 . 3 . . . . . . . . 4 . . . 8 . . . 3 . 5 . 3 . 4 . . . Classes Destroyed 15 | . 8 . . . 5 1 . . . . . . . . . . . . . 1 . . . . . . . . . . . . . . . . Worker 17 | . 2 . . . 3 1 . . . . . . . . 2 . . . . 3 . 2 . . . . 1 . 2 . . . . . . 1 Builder 7 | . 1 . . . 4 . . . . . . . 1 . . . . . . . . . . . . . . . . . . . . . 1 . Tunneler 1 | . . . . . . 1 . . . . . . . . . . . . . . . . . . . . . . . . . . . . . . Hauler 28 | . 2 . . . 5 4 . 2 . . . . . . 3 . . . . 2 . . . . . . 1 . 5 . . . . 1 2 1 Recycler 11 | . 1 . . . 5 2 . 1 . . . . . . 1 . . . . . . . . . . . 1 . . . . . . . . . Operator 15 | . 3 . . . 5 . . 3 . . . . . . 2 . . . . . . . . . . . 1 . . . . . . . . 1 Drone 1 | . . . . . . . . . . . . . . . . . . . . 1 . . . . . . . . . . . . . . . . Watcher 22 | . 3 . . . 4 1 . 3 . . . . 2 . 3 . . . . 1 . . . . . . 1 . 3 . . . . . . 1 Swarmer 49 | . 3 . . . 14 . . 1 . 3 . . . . . . . . 4 . . . 8 . . . 4 . 5 . 3 . 4 . . . Grunt 49 | . 12 2 . . 30 2 . 2 . . . . . . . . . . . . . . . 1 . . . . . . . . . . . . Brawler 1 | . . . . . 1 . . . . . . . . . . . . . . . . . . . . . . . . . . . . . . . Duelist 1 | . . . . . 1 . . . . . . . . . . . . . . . . . . . . . . . . . . . . . . . Protector 1 | . . . . . 1 . . . . . . . . . . . . . . . . . . . . . . . . . . . . . . . Sentry 10 | . . . . . 9 . . . . . . . . . . . . . . . . . . . . . . . . . . . . . . 1 Hunter 3 | . . . . . 1 . . . . . . . . . . . . . . . . . . . . . . . . . . . . . . 2 Best Kill Streak 9 | . 5 2 . . 9 2 . 2 . 1 . . 1 . 1 . . 1 4 2 . 2 5 1 . . 3 . 4 . 3 . 4 1 1 2 Combat Bots Only 7 | . 4 2 . . 7 2 . 2 . 1 . . . . . . . . 4 1 . . 5 1 . . 3 . 4 . 3 . 4 . . 2 Max Kills in Single Turn 3 | . 1 1 . . 3 1 . 2 . 1 . . 1 . 1 . . 1 2 1 . 1 3 1 . . 1 . 2 . 3 . 2 1 1 1 Gunslinging 1 | . . . . . 1 . . . . . . . . . . . . . . . . . . . . . . . . . . . . . . . Exploded 3 | . 1 . . . 3 . . 2 . 1 . . . . . . . . 2 . . . 3 . . . 1 . 2 . 3 . 2 . . . Melee 1 | . . . . . . . . . . . . . . . . . . . . 1 . . . 1 . . 1 . . . . . . . . 1 Uniques/NPCs Destroyed 1 | . . . . . . . . . . . . . . . . . . 1 . . . . . . . . . . . . . . . . . . Data Miner (-6/Data Miner) Combat | -11 -10 -10 -10 -9 -8 -7 -7 -7 -7 -7 -7 -6 -6 -6 -6 -6 -6 -6 -5 -5 -5 -5 -5 -5 -5 -4 -4 -4 -4 -4 -4 -4 -3 -3 -2 -1 -------- Run | Scr Mat Min Exi Min Mat Fac Was Fac Low Low Zio Pro Fac Was Fac Low Low Dat Pro Fac Was Fac Upp Upp Zhi Pro Fac Was Fac Upp Upp War Pro Res Res Acc Damage Taken 6223 | . 694 79 . . 2578 358 . . . 73 . 50 26 . 75 . . 286 31 65 . 251 38 97 . . 88 . 108 . 102 . 70 86 . 1068 Core 1092 | . 144 . . . 360 33 . . . 28 . . . . 20 . . 97 14 46 . 144 . 57 . . . . 25 . . . . 20 . 104 Absorbed by Shields 33 | . . . . . 33 . . . . . . . . . . . . . . . . . . . . . . . . . . . . . . . Core Remaining (%) 80 | 100 . . . 42 34 . . . . . . 91 . . . . . . 84 . . . . . . 68 . . . . . . 97 98 100 93 Volleys Fired 388 | . 86 7 . 9 222 21 . 1 . 11 . . . . . . . . 3 . . . 8 . . . 3 . 4 . 4 . 3 . . 6 Largest 2 | . 2 2 . 1 2 2 . 1 . 1 . . . . . . . . 1 . . . 1 . . . 1 . 1 . 1 . 1 . . 1 Hottest 300 | . 90 115 . 65 130 50 . 30 . 30 . . . . . . . . 30 . . . 80 . . . 80 . 80 . 80 . 80 . . 300 Shots Fired 704 | . 166 14 . 9 430 42 . 1 . 11 . . . . . . . . 3 . . . 8 . . . 3 . 4 . 4 . 3 . . 6 Gun 594 | . 166 14 . 9 363 42 . . . . . . . . . . . . . . . . . . . . . . . . . . . . . . Cannon 64 | . . . . . 59 . . . . . . . . . . . . . . . . . . . . . . . . . . . . . . 5 Launcher 46 | . . . . . 8 . . 1 . 11 . . . . . . . . 3 . . . 8 . . . 3 . 4 . 4 . 3 . . 1 Special . | . . . . . . . . . . . . . . . . . . . . . . . . . . . . . . . . . . . . . Kinetic 443 | . 74 . . . 327 42 . . . . . . . . . . . . . . . . . . . . . . . . . . . . . . Thermal 150 | . 40 8 . 9 93 . . . . . . . . . . . . . . . . . . . . . . . . . . . . . . . Explosive 46 | . . . . . 8 . . 1 . 11 . . . . . . . . 3 . . . 8 . . . 3 . 4 . 4 . 3 . . 1 Electromagnetic 60 | . 52 6 . . 2 . . . . . . . . . . . . . . . . . . . . . . . . . . . . . . . Entropic 5 | . . . . . . . . . . . . . . . . . . . . . . . . . . . . . . . . . . . . 5 Robot Hit Streak 25 | . 16 5 . 10 25 9 . . . 1 . . . . . . . . 1 . . . . . . . 3 . . . . . 6 . . 11 Robot Miss Streak 5 | . 5 2 . 4 3 1 . . . 3 . . . . . . . . 1 . . . . . . . . . . . . . . . . . Penetration Max 1 | . . . . . 1 . . . . . . . . . . . . . . . . . . . . . . . . . . . . . . . Secondary Targets 3 | . . . . . 2 1 . . . . . . . . . . . . . . . . . . . . . . . . . . . . . . Max Gunslinging Chain 1 | . . . . . 1 1 . . . . . . . . . . . . . . . . . . . . . . . . . . . . . . Shots Hit Robots 628 | . 102 9 . 6 319 43 . 19 . 2 1 5 11 . 25 . . 2 3 9 . 3 . 4 4 1 12 . 13 . . 4 3 2 6 20 Core Hits 334 | . 49 5 . . 144 14 . 30 . 4 . 2 3 . 12 . . 1 7 7 . 1 11 1 1 . 10 . 8 . 4 . 5 1 3 11 Critical Hits 13 | . 1 . . . 4 . . . . . . 1 1 . . . . . . 2 . . . . . . . . 2 . . . . . . 2 Critical Kills 7 | . . . . . 2 . . . . . . . . . . . . . . 2 . . . . . . . . 2 . . . . . . 1 Critical Parts Destroyed 5 | . 1 . . . 2 . . . . . . . 1 . . . . . . . . . . . . . . . . . . . . . . 1 Melee Attacks 654 | . . . . 1 8 36 . 42 6 10 1 6 53 . 76 1 . 8 13 67 . 37 9 15 4 12 59 . 94 8 1 9 2 23 13 40 Impact 72 | . . . . . 8 21 . . . . . . . . . . . . . . . . . . . . . . 43 . . . . . . . Slashing 188 | . . . . . . . . . 6 10 . 3 51 . 75 1 . 7 13 22 . . . . . . . . . . . . . . . . Piercing 372 | . . . . . . 14 . 40 . . . 3 . . . . . . . 44 . 36 9 15 1 12 58 . 51 8 1 5 2 23 12 38 Sneak Attacks 76 | . . . . 1 . 6 . 8 . . 1 . 4 . 14 . . 2 . 8 . 2 . . 3 . 5 . 7 . . 4 . 1 4 6 Combat Hostiles 4 | . . . . . . . . 1 . . . . . . . . . . . 1 . . . . . . . . . . . . . . . 2 Follow-up Attacks 1 | . . . . . . . . . . . . . . . . . . . . . . . . . . . . . . . . . . . . 1 Damage Inflicted 25131 | . 1261 116 . 86 6379 1121 . 1503 . 354 . 276 676 . 2202 . . 145 464 1053 . 399 876 177 155 174 1476 . 1973 . 409 . 627 249 534 2446 Guns 6692 | . 1176 116 . 86 4778 536 . . . . . . . . . . . . . . . . . . . . . . . . . . . . . . Cannons 2037 | . . . . . 743 . . . . . . . . . . . . . . . . . . . . . . . . . . . . . . 1294 Explosions 5423 | . 85 . . . 858 . . 541 . 354 . . . . . . . . 266 . . . 876 . . . 652 . 588 . 409 . 627 . . 167 Melee 10979 | . . . . . . 585 . 962 . . . 276 676 . 2202 . . 145 198 1053 . 399 . 177 155 174 824 . 1385 . . . . 249 534 985 Ramming . | . . . . . . . . . . . . . . . . . . . . . . . . . . . . . . . . . . . . . Kinetic 5160 | . 320 . . . 4304 536 . . . . . . . . . . . . . . . . . . . . . . . . . . . . . . Thermal 1918 | . 382 65 . 86 1184 . . 201 . . . . . . . . . . . . . . . . . . . . . . . . . . . . Explosive 4858 | . . . . . 858 . . 61 . 354 . . . . . . . . 266 . . . 876 . . . 652 . 588 . 409 . 627 . . 167 Electromagnetic 922 | . 559 51 . . 33 . . 279 . . . . . . . . . . . . . . . . . . . . . . . . . . . . Impact 1477 | . . . . . . 430 . . . . . . . . . . . . . . . . . . . . . . 1047 . . . . . . . Slashing 3696 | . . . . . . . . . . . . 194 676 . 2202 . . 145 198 281 . . . . . . . . . . . . . . . . Piercing 5806 | . . . . . . 155 . 962 . . . 82 . . . . . . . 772 . 399 . 177 155 174 824 . 338 . . . . 249 534 985 Entropic 1294 | . . . . . . . . . . . . . . . . . . . . . . . . . . . . . . . . . . . . 1294 Highest Corruption 8 | . 3 3 3 3 2 . . . . . . . . 8 8 . . . . . 6 6 . . . . . . 3 3 3 3 . . . . Average Corruption 2 | . 2 3 3 3 2 . . . . . . . . 8 4 . . . . . 6 2 . . . . . . 2 3 3 3 . . . . Corruption Purged 14 | . . . . . . . . . . . . . . . 8 . . . . . . 6 . . . . . . . . . . . . . . Effects 94 | . 2 9 6 4 39 . . . . . . . . 3 9 . . . . . 1 8 . . . . . . 3 4 5 1 . . . . Message Errors 32 | . 1 1 2 1 17 . . . . . . . . . 2 . . . . . . 2 . . . . . . 1 2 3 . . . . . Matter Fused 17 | . . 5 2 2 . . . . . . . . . 3 2 . . . . . 1 2 . . . . . . . . . . . . . . Heat Flow Errors 14 | . 1 2 2 . 1 . . . . . . . . . 3 . . . . . . 1 . . . . . . 1 1 2 . . . . . Energy Discharges 12 | . . 1 . 1 6 . . . . . . . . . 1 . . . . . . 1 . . . . . . . 1 . 1 . . . . Data Loss (minor) 5 | . . . . . 2 . . . . . . . . . 1 . . . . . . 1 . . . . . . 1 . . . . . . . Targeting Errors 12 | . . . . . 11 . . . . . . . . . . . . . . . . 1 . . . . . . . . . . . . . . Weapon Failures 2 | . . . . . 2 . . . . . . . . . . . . . . . . . . . . . . . . . . . . . . . Overload Shots . | . . . . . . . . . . . . . . . . . . . . . . . . . . . . . . . . . . . . . Overflow Damage 2495 | . 10 . . . 50 24 . 189 . 14 . 87 36 . 272 . . . 82 . . 134 137 23 . 154 369 . 661 . . . 22 . 117 114 Projectiles 16 | . . . . . 16 . . . . . . . . . . . . . . . . . . . . . . . . . . . . . . . Explosions 352 | . 10 . . . 34 . . . . 14 . . . . . . . . 1 . . . 137 . . . 86 . 48 . . . 22 . . . Melee 2127 | . . . . . . 24 . 189 . . . 87 36 . 272 . . . 81 . . 134 . 23 . 154 283 . 613 . . . . . 117 114 Knockbacks 11 | . . . . . 9 . . . . . . . . . . . . . . . . . . . . . . . 2 . . . . . . . Impact 2 | . . . . . . . . . . . . . . . . . . . . . . . . . . . . . 2 . . . . . . . Kinetic 8 | . . . . . 8 . . . . . . . . . . . . . . . . . . . . . . . . . . . . . . . Secondary 1 | . . . . . 1 . . . . . . . . . . . . . . . . . . . . . . . . . . . . . . . Self-Inflicted Damage 120 | . 35 . . . . . . . . 27 . . . . . . . . . . . . . . . . . . . . . . . . . 58 Shots 4 | . 1 . . . . . . . . 2 . . . . . . . . . . . . . . . . . . . . . . . . . 1 Rammed . | . . . . . . . . . . . . . . . . . . . . . . . . . . . . . . . . . . . . . Targets Rammed . | . . . . . . . . . . . . . . . . . . . . . . . . . . . . . . . . . . . . . Kicked . | . . . . . . . . . . . . . . . . . . . . . . . . . . . . . . . . . . . . . Crushed . | . . . . . . . . . . . . . . . . . . . . . . . . . . . . . . . . . . . . . Highest Temperature 321 | . 321 272 246 104 214 67 . . . . . . . . 251 . . . . . . 258 131 7 8 . 16 . 88 101 232 . 74 . . 287 Average Temperature 62 | . 73 89 104 37 19 24 . . . . . . . . 99 . . . . . . 110 64 3 6 . 9 . 19 63 57 . 38 . . 125 Received Heat Transfer 1748 | . 291 42 . . 1055 117 . . . . . . . . 36 . . 36 . . . 18 . 45 . . 18 . 9 . 9 . . . . 72 Effects 1 | . 1 . . . . . . . . . . . . . . . . . . . . . . . . . . . . . . . . . . . Interference 1 | . 1 . . . . . . . . . . . . . . . . . . . . . . . . . . . . . . . . . . . Siege Activations . | . . . . . . . . . . . . . . . . . . . . . . . . . . . . . . . . . . . . . Robots Corrupted . | . . . . . . . . . . . . . . . . . . . . . . . . . . . . . . . . . . . . . Combat Hostiles . | . . . . . . . . . . . . . . . . . . . . . . . . . . . . . . . . . . . . . Parts Fried 18 | . 3 . . . 1 2 . . . . . . . . . . . . . . . . . . . . . . 12 . . . . . . . Impact Corruptions 15 | . . . . . . 1 . . . . . . . . . . . . . . . . . . . . . . 14 . . . . . . . Robots Melted . | . . . . . . . . . . . . . . . . . . . . . . . . . . . . . . . . . . . . . Combat Hostiles . | . . . . . . . . . . . . . . . . . . . . . . . . . . . . . . . . . . . . . Parts Melted 6 | . 2 . . . 4 . . . . . . . . . . . . . . . . . . . . . . . . . . . . . . . Heat Transferred 4134 | . 889 185 . 222 2738 . . 100 . . . . . . . . . . . . . . . . . . . . . . . . . . . . Parts Sabotaged . | . . . . . . . . . . . . . . . . . . . . . . . . . . . . . . . . . . . . . Parts Stolen . | . . . . . . . . . . . . . . . . . . . . . . . . . . . . . . . . . . . . . Parts Stripped . | . . . . . . . . . . . . . . . . . . . . . . . . . . . . . . . . . . . . . Power Chain Reactions 3 | . 2 . . . . . . 1 . . . . . . . . . . . . . . . . . . . . . . . . . . . . Missiles Intercepted . | . . . . . . . . . . . . . . . . . . . . . . . . . . . . . . . . . . . . . Alert | -11 -10 -10 -10 -9 -8 -7 -7 -7 -7 -7 -7 -6 -6 -6 -6 -6 -6 -6 -5 -5 -5 -5 -5 -5 -5 -4 -4 -4 -4 -4 -4 -4 -3 -3 -2 -1 ------- Run | Scr Mat Min Exi Min Mat Fac Was Fac Low Low Zio Pro Fac Was Fac Low Low Dat Pro Fac Was Fac Upp Upp Zhi Pro Fac Was Fac Upp Upp War Pro Res Res Acc Peak Influence 587 | . 259 83 . 134 587 326 25 377 . . . . 403 32 408 . . . . 400 35 527 . . . . 432 15 404 . . . . 171 96 131 Average Influence 97 | . 107 28 . 90 281 101 14 91 . . . . 49 22 46 . . . . 29 13 126 . . . . 40 7 44 . . . . 109 20 35 Maximum Alert Level 2 | . 1 . . . 2 1 . 1 . . . . 2 . 2 . . . . 2 . 2 . . . . 2 . 2 . . . . . . . Low Security (%) 84 | 100 91 100 . 100 37 81 100 80 . . . . 98 100 94 . . . . 99 100 77 . . . . 97 100 97 . . . . 100 100 100 Level 1 9 | . 8 . . . 34 18 . 19 . . . . . . . . . . . . . 4 . . . . . . . . . . . . . . Level 2 6 | . . . . . 27 . . . . . . . 1 . 5 . . . . . . 18 . . . . 2 . 2 . . . . . . . Level 3 . | . . . . . . . . . . . . . . . . . . . . . . . . . . . . . . . . . . . . . Level 4 . | . . . . . . . . . . . . . . . . . . . . . . . . . . . . . . . . . . . . . Level 5 . | . . . . . . . . . . . . . . . . . . . . . . . . . . . . . . . . . . . . . High Security . | . . . . . . . . . . . . . . . . . . . . . . . . . . . . . . . . . . . . . Max Security . | . . . . . . . . . . . . . . . . . . . . . . . . . . . . . . . . . . . . . Squads Dispatched 54 | . 3 . . . 9 10 . 1 . . . . 2 . 9 . . . . 2 . 3 . . . . 4 . 9 . . . . . 1 1 Investigation 12 | . 1 . . . 1 2 . . . . . . 1 . 4 . . . . . . 1 . . . . . . 2 . . . . . . . Extermination 16 | . . . . . . 3 . . . . . . 1 . 1 . . . . 2 . 1 . . . . 2 . 5 . . . . . . 1 Reinforcement 19 | . 2 . . . 5 2 . 1 . . . . . . 3 . . . . . . 1 . . . . 2 . 2 . . . . . 1 . Assault 2 | . . . . . 1 . . . . . . . . . 1 . . . . . . . . . . . . . . . . . . . . . Garrison 5 | . . . . . 2 3 . . . . . . . . . . . . . . . . . . . . . . . . . . . . . . Intercept . | . . . . . . . . . . . . . . . . . . . . . . . . . . . . . . . . . . . . . Construction Impeded 2 | . . . . . 1 . . . . . . . . . . . . . . . . . . . . . . . 1 . . . . . . . Haulers Reinforced 5 | . . . . . . . . 1 . . . . . . 1 . . . . . . . . . . . 1 . 1 . . . . . 1 . Stealth | -11 -10 -10 -10 -9 -8 -7 -7 -7 -7 -7 -7 -6 -6 -6 -6 -6 -6 -6 -5 -5 -5 -5 -5 -5 -5 -4 -4 -4 -4 -4 -4 -4 -3 -3 -2 -1 --------- Run | Scr Mat Min Exi Min Mat Fac Was Fac Low Low Zio Pro Fac Was Fac Low Low Dat Pro Fac Was Fac Upp Upp Zhi Pro Fac Was Fac Upp Upp War Pro Res Res Acc Distress Signals 15 | . 1 . . . 6 1 . 3 . . . . . . 1 . . . . . . 1 . . . . 2 . . . . . . . . . Communications Jammed 3 | . . . . . . . . . . . . . . . . . . . . . . . . . . . . . . . . . . . 3 . Distress Signals 3 | . . . . . . . . . . . . . . . . . . . . . . . . . . . . . . . . . . . 3 . Times Spotted 338 | . 33 2 . 2 86 20 1 18 . 7 . 1 10 6 21 . . 4 5 11 5 20 5 1 . . 20 4 7 . 4 11 4 7 6 17 Peak Tracking Total 10 | . 5 2 . 2 6 4 1 5 . 5 . 1 3 6 4 . . 4 3 3 5 9 4 1 . . 6 5 4 . 2 10 4 5 3 8 Tactical Retreats 60 | . 3 . . . 5 3 . 5 . 4 . 1 3 . 7 . . . 2 3 . 7 1 . . . 7 . 4 . 2 . . . 1 2 Traps | -11 -10 -10 -10 -9 -8 -7 -7 -7 -7 -7 -7 -6 -6 -6 -6 -6 -6 -6 -5 -5 -5 -5 -5 -5 -5 -4 -4 -4 -4 -4 -4 -4 -3 -3 -2 -1 ------- Run | Scr Mat Min Exi Min Mat Fac Was Fac Low Low Zio Pro Fac Was Fac Low Low Dat Pro Fac Was Fac Upp Upp Zhi Pro Fac Was Fac Upp Upp War Pro Res Res Acc Traps Triggered 16 | . 3 . . . 1 2 . . . . . . 3 . 2 . . . . 2 . . . . . . 2 . 1 . . . . . . . Indirectly . | . . . . . . . . . . . . . . . . . . . . . . . . . . . . . . . . . . . . . Trap Hack Attempts 48 | . 5 . . . 6 . . . . . . . 3 . 12 . . . . 2 . 8 . . . . 12 . . . . . . . . . Triggered 1 | . . . . . . . . . . . . . . . 1 . . . . . . . . . . . . . . . . . . . . . Disarmed 16 | . . . . . 1 . . . . . . . 13 . 1 . . . . 1 . . . . . . . . . . . . . . . . Reprogrammed 39 | . 3 . . . 3 . . . . . . . 12 . 3 . . . . 1 . 5 . . . . 6 . 6 . . . . . . . Reused 14 | . 1 . . . 2 . . . . . . . 2 . 3 . . . . 1 . 1 . . . . 2 . 2 . . . . . . . Traps Extracted . | . . . . . . . . . . . . . . . . . . . . . . . . . . . . . . . . . . . . . Installed . | . . . . . . . . . . . . . . . . . . . . . . . . . . . . . . . . . . . . . Triggered 24 | . 1 . . . 3 . . . . . . . 2 . 3 . . . . 1 . 1 . . . . 2 . 2 . 2 6 1 . . . Machines | -11 -10 -10 -10 -9 -8 -7 -7 -7 -7 -7 -7 -6 -6 -6 -6 -6 -6 -6 -5 -5 -5 -5 -5 -5 -5 -4 -4 -4 -4 -4 -4 -4 -3 -3 -2 -1 ---------- Run | Scr Mat Min Exi Min Mat Fac Was Fac Low Low Zio Pro Fac Was Fac Low Low Dat Pro Fac Was Fac Upp Upp Zhi Pro Fac Was Fac Upp Upp War Pro Res Res Acc Machines Disabled 20 | . 1 . . . 5 1 . 7 . . . . . . 1 . . 1 . . . 1 . . . . . . . . . 1 . . . 2 Max in Single Turn 3 | . 1 . . . 1 1 . 3 . . . . . . 1 . . 1 . . . 1 . . . . . . . . . 1 . . . 1 Garrison Access 16 | . . . . . 1 2 . 1 . . . . 2 . 3 . . . . 1 . . . . . . 2 . 2 . . . . 2 . . Machines Sabotaged . | . . . . . . . . . . . . . . . . . . . . . . . . . . . . . . . . . . . . . Garrisons Compromised . | . . . . . . . . . . . . . . . . . . . . . . . . . . . . . . . . . . . . . Overloaded Fab Kills . | . . . . . . . . . . . . . . . . . . . . . . . . . . . . . . . . . . . . . Fab Network Shutdowns 6 | . . . . . . . . . . . . . 1 . 1 . . . . 1 . 1 . . . . 1 . 1 . . . . . . . Hacking | -11 -10 -10 -10 -9 -8 -7 -7 -7 -7 -7 -7 -6 -6 -6 -6 -6 -6 -6 -5 -5 -5 -5 -5 -5 -5 -4 -4 -4 -4 -4 -4 -4 -3 -3 -2 -1 --------- Run | Scr Mat Min Exi Min Mat Fac Was Fac Low Low Zio Pro Fac Was Fac Low Low Dat Pro Fac Was Fac Upp Upp Zhi Pro Fac Was Fac Upp Upp War Pro Res Res Acc Machines Accessed 186 | . 9 1 1 . 11 18 . 15 2 2 . . 25 . 19 . . 2 . 21 . 4 1 . 2 . 15 . 21 . . 7 . 4 1 5 Terminals 98 | . 6 1 . . 8 12 . 8 . . . . 14 . 9 . . . . 12 . 2 . . . . 9 . 10 . . . . 1 1 5 Fabricators 19 | . . . . . . 4 . . . . . . 3 . 3 . . . . 3 . 1 . . . . 2 . 3 . . . . . . . Repair Stations 12 | . 1 . . . 1 . . 1 . . . . 3 . 1 . . . . . . 1 . . . . 1 . 3 . . . . . . . Recycling Units 22 | . 2 . . . 1 . . 4 . . . . 3 . 3 . . . . 5 . . . . . . 1 . 2 . . . . 1 . . Scanalyzers 2 | . . . . . . . . 1 . . . . . . . . . . . . . . . . . . . . 1 . . . . . . . Garrison Access 16 | . . . . . 1 2 . 1 . . . . 2 . 3 . . . . 1 . . . . . . 2 . 2 . . . . 2 . . Total Hacks 631 | . 31 2 1 . 29 45 . 31 6 5 . . 80 . 56 . . 5 . 81 . 27 1 . 9 . 68 . 106 . . 14 . 10 8 16 Successful 509 | . 17 2 1 . 18 33 . 26 6 5 . . 59 . 42 . . 5 . 73 . 26 1 . 9 . 62 . 84 . . 14 . 9 8 9 Failed 120 | . 14 . . . 11 12 . 5 . . . . 20 . 13 . . . . 8 . 1 . . . . 6 . 22 . . . . 1 . 7 Catastrophic 11 | . 1 . . . 4 1 . . . . . . . . 3 . . . . 1 . . . . . . . . 1 . . . . . . . Database Lockouts 2 | . . . . . . . . . . . . . 1 . 1 . . . . . . . . . . . . . . . . . . . . . Manual 350 | . 24 2 . . 17 29 . 12 . . . . 44 . 31 . . . . 49 . 15 . 1 . . 34 . 70 . . . . 5 4 13 Terminals 419 | . 28 2 . . 23 31 . 21 . . . . 53 . 34 . . . . 56 . 15 . . . . 46 . 79 . . . . 7 8 16 Fabricators 88 | . . . . . . 11 . . . . . . 14 . 11 . . . . 19 . 10 . . . . 13 . 10 . . . . . . . Repair Stations 33 | . 1 . . . 2 . . 2 . . . . 5 . 3 . . . . . . 2 . . . . 6 . 12 . . . . . . . Recycling Units 29 | . 2 . . . 3 . . 5 . . . . 5 . 5 . . . . 5 . . . . . . 1 . 2 . . . . 1 . . Scanalyzers 3 | . . . . . . . . 2 . . . . . . . . . . . . . . . . . . . . 1 . . . . . . . Garrison Access 18 | . . . . . 1 3 . 1 . . . . 3 . 3 . . . . 1 . . . . . . 2 . 2 . . . . 2 . . Terminal Hacks 291 | . 13 2 1 . 10 10 . 12 6 5 . . 28 . 17 . . 5 . 40 . 13 1 . 9 . 32 . 54 . . 14 . 4 7 8 Record 20 | . . . 1 . . . . . 5 4 . . . . . . . 1 . . . . . . 1 . . . . . . 8 . . . . Part Schematic 21 | . . . . . 1 2 . 2 . . . . 1 . 2 . . 1 . 9 . . . . . . . . 3 . . . . . . . Robot Analysis 6 | . . . . . . . . . . . . . . . . . . . . 1 . . . . 4 . . . 1 . . . . . . . Prototype ID Bank 60 | . 8 2 . . . . . 3 . . . . 2 . . . . 3 . 6 . 1 . . 4 . 4 . 21 . . 4 . . 1 1 Open Door 6 | . . . . . . . . . 1 1 . . . . . . . . . . . . 1 . . . . . . . . 2 . . . 1 Level Access Points 3 | . . . . . . . . . . . . . . . . . . . . . . . . . . . . . . . . . . 1 1 1 Branch Access Points 6 | . . . . . . . . 1 . . . . 1 . 1 . . . . . . 1 . . . . 1 . 1 . . . . . . . Emergency Access Points 1 | . . . . . . . . . . . . . . . . . . . . . . . . . . . 1 . . . . . . . . . Machine Index 6 | . . . . . . . . 1 . . . . . . 1 . . . . . . 1 . . . . 1 . 1 . . . . 1 . . Terminal Index 2 | . . . . . . 1 . . . . . . . . 1 . . . . . . . . . . . . . . . . . . . . . Fabricator Index 3 | . . . . . . 1 . . . . . . . . 1 . . . . 1 . . . . . . . . . . . . . . . . Repair Station Index 1 | . . . . . . . . . . . . . . . . . . . . 1 . . . . . . . . . . . . . . . . Garrison Index 1 | . . . . . . . . . . . . . . . 1 . . . . . . . . . . . . . . . . . . . . . Alert Level 16 | . . . . . 2 1 . 1 . . . . 2 . . . . . . 3 . 1 . . . . 1 . 3 . . . . . 1 1 Unreport Threat 36 | . 1 . . . 4 . . 1 . . . . 3 . 1 . . . . 6 . 5 . . . . 6 . 6 . . . . . 1 2 Locate Traps 37 | . 4 . . . 2 2 . 1 . . . . 7 . 3 . . . . 5 . . . . . . 7 . 5 . . . . 1 . . Disarm Traps 2 | . . . . . . . . . . . . . 2 . . . . . . . . . . . . . . . . . . . . . . . Reprogram Traps 3 | . . . . . . . . . . . . . 2 . . . . . . . . . . . . . . . 1 . . . . . . . Recall Investigation 3 | . . . . . . . . . . . . . 1 . 1 . . . . . . . . . . . . . 1 . . . . . . . Recall Extermination 15 | . . . . . . 2 . . . . . . 1 . 1 . . . . 2 . 1 . . . . 2 . 5 . . . . . . 1 Recall Reinforcements 4 | . . . . . 1 . . . . . . . . . 2 . . . . . . . . . . . 1 . . . . . . . . . Hauler Manifests 12 | . . . . . . 1 . 1 . . . . 2 . 1 . . . . 1 . 1 . . . . 2 . 2 . . . . . 1 . Registered Components 2 | . . . . . . . . . . . . . 1 . . . . . . . . . . . . . 1 . . . . . . . . . Registered Prototypes 10 | . . . . . . . . 1 . . . . 1 . . . . . . 2 . 1 . . . . 2 . 2 . . . . . 1 . Zone Layout 15 | . . . . . . . . . . . . . 2 . 1 . . . . 3 . 1 . . . . 3 . 2 . . . . 1 1 1 Fabricator Hacks 58 | . . . . . . 10 . . . . . . 8 . 6 . . . . 12 . 8 . . . . 8 . 6 . . . . . . . Network Status 4 | . . . . . . . . . . . . . . . . . . . . . . . . . . . 2 . 2 . . . . . . . Load Schematic 24 | . . . . . . 4 . . . . . . 3 . 3 . . . . 5 . 4 . . . . 3 . 2 . . . . . . . Build 30 | . . . . . . 6 . . . . . . 5 . 3 . . . . 7 . 4 . . . . 3 . 2 . . . . . . . Repair Station Hacks 31 | . . . . . 2 . . 2 . . . . 5 . 2 . . . . . . 2 . . . . 6 . 12 . . . . . . . Scan Component 15 | . . . . . 1 . . 1 . . . . 2 . 1 . . . . . . 1 . . . . 3 . 6 . . . . . . . Repair 15 | . . . . . 1 . . 1 . . . . 2 . 1 . . . . . . 1 . . . . 3 . 6 . . . . . . . Refit 1 | . . . . . . . . . . . . . 1 . . . . . . . . . . . . . . . . . . . . . . . Recycling Unit Hacks 26 | . 2 . . . 1 . . 5 . . . . 4 . 5 . . . . 5 . . . . . . 1 . 2 . . . . 1 . . Report Inventory 16 | . . . . . . . . 3 . . . . 2 . 3 . . . . 4 . . . . . . 1 . 2 . . . . 1 . . Retrieve Components 10 | . 2 . . . 1 . . 2 . . . . 2 . 2 . . . . 1 . . . . . . . . . . . . . . . . Scanalyzer 3 | . . . . . . . . 2 . . . . . . . . . . . . . . . . . . . . 1 . . . . . . . Insert Component 3 | . . . . . . . . 2 . . . . . . . . . . . . . . . . . . . . 1 . . . . . . . Garrison Access Hacks 16 | . . . . . 1 2 . 1 . . . . 2 . 3 . . . . 1 . . . . . . 2 . 2 . . . . 2 . . Seal Access 16 | . . . . . 1 2 . 1 . . . . 2 . 3 . . . . 1 . . . . . . 2 . 2 . . . . 2 . . Unauthorized Hacks 84 | . 2 . . . 4 11 . 4 . . . . 12 . 9 . . . . 15 . 3 . . . . 13 . 7 . . . . 2 1 1 Terminals 58 | . 2 . . . 4 10 . 4 . . . . 8 . 6 . . . . 8 . 1 . . . . 8 . 3 . . . . 2 1 1 Track 1 | . 1 . . . . . . . . . . . . . . . . . . . . . . . . . . . . . . . . . . . Assimilate 12 | . . . . . . 3 . 2 . . . . . . 1 . . . . 3 . . . . . . 2 . . . . . . 1 . . Botnet 42 | . 1 . . . 4 7 . 1 . . . . 7 . 5 . . . . 5 . 1 . . . . 6 . 3 . . . . 1 1 . Detonate 1 | . . . . . . . . 1 . . . . . . . . . . . . . . . . . . . . . . . . . . . . Disrupt 1 | . . . . . . . . . . . . . . . . . . . . . . . . . . . . . . . . . . . . 1 Operators 1 | . . . . . . . . . . . . . 1 . . . . . . . . . . . . . . . . . . . . . . . Fabricators 26 | . . . . . . 1 . . . . . . 4 . 3 . . . . 7 . 2 . . . . 5 . 4 . . . . . . . Report 6 | . . . . . . 1 . . . . . . 1 . 1 . . . . 1 . . . . . . 1 . 1 . . . . . . . Prioritize 8 | . . . . . . . . . . . . . 1 . 1 . . . . 3 . 1 . . . . 1 . 1 . . . . . . . Siphon 10 | . . . . . . . . . . . . . 2 . 1 . . . . 3 . 1 . . . . 2 . 1 . . . . . . . Haulers 2 | . . . . . . . . . . . . . . . . . . . . . . . . . . . 1 . 1 . . . . . . . Repair Stations . | . . . . . . . . . . . . . . . . . . . . . . . . . . . . . . . . . . . . . Recycling Units . | . . . . . . . . . . . . . . . . . . . . . . . . . . . . . . . . . . . . . Scanalyzers . | . . . . . . . . . . . . . . . . . . . . . . . . . . . . . . . . . . . . . Garrison Access . | . . . . . . . . . . . . . . . . . . . . . . . . . . . . . . . . . . . . . Data Cores Recovered 8 | . 1 . . . 1 . . 3 . . . . . . . . . . . . . . . . . . 1 . 1 . . . . . . 1 Used 1 | . . . . . . . . . . . . . . . . . . . . . . . . . . . . . . . . . . . . 1 Hacking Detections 112 | . 6 1 . . 10 17 . 11 . . . . 17 . 13 . . . . 11 . 3 . . . . 7 . 10 . . . . 2 1 3 Full Trace Events 7 | . . . . . . 2 . . . . . . . . 2 . . . . . . 1 . . . . . . 2 . . . . . . . Feedback Events . | . . . . . . . . . . . . . . . . . . . . . . . . . . . . . . . . . . . . . Feedback Blocked . | . . . . . . . . . . . . . . . . . . . . . . . . . . . . . . . . . . . . . Robot Schematics Acquired . | . . . . . . . . . . . . . . . . . . . . . . . . . . . . . . . . . . . . . Robots Built . | . . . . . . . . . . . . . . . . . . . . . . . . . . . . . . . . . . . . . Matter . | . . . . . . . . . . . . . . . . . . . . . . . . . . . . . . . . . . . . . Time . | . . . . . . . . . . . . . . . . . . . . . . . . . . . . . . . . . . . . . Total Robot Build Rating . | . . . . . . . . . . . . . . . . . . . . . . . . . . . . . . . . . . . . . Part Schematics Acquired 21 | . . . . . 1 2 . 2 . . . . 1 . 2 . . 1 . 9 . . . . . . . . 3 . . . . . . . Parts Built 25 | . . . . . . 5 . . . . . . 4 . 3 . . . . 5 . 3 . . . . 3 . 2 . . . . . . . Matter 5352 | . . . . . . 792 . . . . . . 602 . 743 . . . . 1086 . 789 . . . . 789 . 551 . . . . . . . Time 1312 | . . . . . . 260 . . . . . . 168 . 144 . . . . 190 . 138 . . . . 217 . 195 . . . . . . . Total Part Build Rating 141 | . . . . . . 16 . . . . . . 22 . 17 . . . . 29 . 21 . . . . 21 . 15 . . . . . . . Parts Repaired 15 | . . . . . 1 . . 1 . . . . 2 . 1 . . . . . . 1 . . . . 3 . 6 . . . . . . . Time 658 | . . . . . 60 . . 78 . . . . 100 . 12 . . . . . . 26 . . . . 96 . 286 . . . . . . . Parts Recycled . | . . . . . . . . . . . . . . . . . . . . . . . . . . . . . . . . . . . . . Recycled Matter . | . . . . . . . . . . . . . . . . . . . . . . . . . . . . . . . . . . . . . Retrieved Matter . | . . . . . . . . . . . . . . . . . . . . . . . . . . . . . . . . . . . . . Retrieved Components 33 | . 10 . . . . . . 6 . . . . 3 . 11 . . . . 3 . . . . . . . . . . . . . . . . Parts Scanalyzed . | . . . . . . . . . . . . . . . . . . . . . . . . . . . . . . . . . . . . . Part Schematics Acquired . | . . . . . . . . . . . . . . . . . . . . . . . . . . . . . . . . . . . . . Parts Damaged . | . . . . . . . . . . . . . . . . . . . . . . . . . . . . . . . . . . . . . Bothacking | -11 -10 -10 -10 -9 -8 -7 -7 -7 -7 -7 -7 -6 -6 -6 -6 -6 -6 -6 -5 -5 -5 -5 -5 -5 -5 -4 -4 -4 -4 -4 -4 -4 -3 -3 -2 -1 ------------ Run | Scr Mat Min Exi Min Mat Fac Was Fac Low Low Zio Pro Fac Was Fac Low Low Dat Pro Fac Was Fac Upp Upp Zhi Pro Fac Was Fac Upp Upp War Pro Res Res Acc Used RIF Installer . | . . . . . . . . . . . . . . . . . . . . . . . . . . . . . . . . . . . . . Robots Hacked 19 | . . . . 1 . 1 . 1 . . 1 . 1 . 1 . . 1 . 1 . . . . 3 . 1 . . . . 4 . . 1 2 Non-combat 9 | . . . . . . 1 . 1 . . . . 1 . 1 . . . . 1 . . . . . . 1 . . . . 1 . . 1 1 Combat 10 | . . . . 1 . . . . . . 1 . . . . . . 1 . . . . . . 3 . . . . . . 3 . . . 1 Robot Hacks Applied 19 | . . . . 1 . 1 . 1 . . 1 . 1 . 1 . . 1 . 1 . . . . 3 . 1 . . . . 4 . . 1 2 parse_system 12 | . . . . 1 . . . . . . 1 . . . . . . 1 . . . . . . 3 . . . . . . 4 . . 1 1 find_chute 3 | . . . . . . . . . . . . . 1 . . . . . . 1 . . . . . . 1 . . . . . . . . . find_fabricator 4 | . . . . . . 1 . 1 . . . . . . 1 . . . . . . . . . . . . . . . . . . . . 1 Relay Couplers Released . | . . . . . . . . . . . . . . . . . . . . . . . . . . . . . . . . . . . . . Robots Rewired 1 | . . . . . . . . 1 . . . . . . . . . . . . . . . . . . . . . . . . . . . . Allies Hacked . | . . . . . . . . . . . . . . . . . . . . . . . . . . . . . . . . . . . . . Hacks Repelled . | . . . . . . . . . . . . . . . . . . . . . . . . . . . . . . . . . . . . . Allies | -11 -10 -10 -10 -9 -8 -7 -7 -7 -7 -7 -7 -6 -6 -6 -6 -6 -6 -6 -5 -5 -5 -5 -5 -5 -5 -4 -4 -4 -4 -4 -4 -4 -3 -3 -2 -1 -------- Run | Scr Mat Min Exi Min Mat Fac Was Fac Low Low Zio Pro Fac Was Fac Low Low Dat Pro Fac Was Fac Upp Upp Zhi Pro Fac Was Fac Upp Upp War Pro Res Res Acc Total Allies 40 | . . 3 . . . 2 20 2 . 3 4 . . . 1 . . . . 3 . . . . . . 1 . . . . . . 1 . . Largest Group 20 | . . 3 3 2 2 1 20 2 . 3 4 3 . . 1 . . . . 2 . 2 . . . . 1 1 1 . . . . 1 . . Highest-Rated Group 499 | . . 40 40 32 32 26 499 40 . 93 112 81 . . 26 . . . . 36 . 36 . . . . 26 26 26 . . . . 44 . . Highest-Rated Ally 44 | . . 16 16 16 16 26 35 33 . 31 31 31 . . 26 . . . . 26 . 26 . . . . 26 26 26 . . . . 44 . . Total Orders 9 | . . . . . . . . . . . . . . . . . . . . . . 4 . . . 1 . . 4 . . . . . . . STAY 4 | . . . . . . . . . . . . . . . . . . . . . . 2 . . . . . . 2 . . . . . . . FOLLOW 4 | . . . . . . . . . . . . . . . . . . . . . . 2 . . . . . . 2 . . . . . . . EXPLORE 1 | . . . . . . . . . . . . . . . . . . . . . . . . . . 1 . . . . . . . . . . Ally Attacks 58 | . . . . 25 10 . 14 2 . . . 7 . . . . . . . . . . . . . . . . . . . . . . . . Total Damage 1851 | . . . . 301 125 . 1072 138 . . . 215 . . . . . . . . . . . . . . . . . . . . . . . . Kills 14 | . . . . 5 1 . 7 1 . . . . . . . . . . . . . . . . . . . . . . . . . . . . Allies Corrupted 1 | . . . . . . . . . . . . . . . 1 . . . . . . . . . . . . . . . . . . . . . Allies Melted . | . . . . . . . . . . . . . . . . . . . . . . . . . . . . . . . . . . . . . Intel | -11 -10 -10 -10 -9 -8 -7 -7 -7 -7 -7 -7 -6 -6 -6 -6 -6 -6 -6 -5 -5 -5 -5 -5 -5 -5 -4 -4 -4 -4 -4 -4 -4 -3 -3 -2 -1 ------- Run | Scr Mat Min Exi Min Mat Fac Was Fac Low Low Zio Pro Fac Was Fac Low Low Dat Pro Fac Was Fac Upp Upp Zhi Pro Fac Was Fac Upp Upp War Pro Res Res Acc Robot Analysis Total 6 | . . . . . . . . . . . . . . . . . . . . 1 . . . . 4 . . . 1 . . . . . . . Derelict Logs Recovered 17 | . . 1 . 2 . . . . 2 2 1 2 . . . 1 . . 1 . . . 1 . . 1 . . . 1 2 . . . . . Drone Launches 3 | . . . . . . . . . . . . . . . . . . . . . . . . . . 3 . . . . . . . . . . Drone Recoveries . | . . . . . . . . . . . . . . . . . . . . . . . . . . . . . . . . . . . . . Exploration | -11 -10 -10 -10 -9 -8 -7 -7 -7 -7 -7 -7 -6 -6 -6 -6 -6 -6 -6 -5 -5 -5 -5 -5 -5 -5 -4 -4 -4 -4 -4 -4 -4 -3 -3 -2 -1 ------------- Run | Scr Mat Min Exi Min Mat Fac Was Fac Low Low Zio Pro Fac Was Fac Low Low Dat Pro Fac Was Fac Upp Upp Zhi Pro Fac Was Fac Upp Upp War Pro Res Res Acc Turns Passed 25630 | 44 1438 627 355 263 3261 2477 127 1077 292 474 276 258 1367 109 2214 207 121 64 392 2217 47 877 365 486 83 160 1648 35 1925 380 373 549 72 279 254 437 Spaces Moved 31987 | 35 976 537 342 197 1805 2714 219 1454 721 904 671 477 2322 160 2660 544 251 109 483 2730 93 1232 637 416 211 379 2133 75 2709 543 517 725 244 630 468 664 Core 6 | 3 2 . . . . . . . . . . . . . . . . . . . . . . . . . . . . . . . . . . 1 Treads 39 | . 17 7 . . 13 2 . . . . . . . . . . . . . . . . . . . . . . . . . . . . . . Legs . | . . . . . . . . . . . . . . . . . . . . . . . . . . . . . . . . . . . . . Wheels 4158 | 32 957 530 342 197 1792 308 . . . . . . . . . . . . . . . . . . . . . . . . . . . . . . Hover . | . . . . . . . . . . . . . . . . . . . . . . . . . . . . . . . . . . . . . Flight 27784 | . . . . . . 2404 219 1454 721 904 671 477 2322 160 2660 544 251 109 483 2730 93 1232 637 416 211 379 2133 75 2709 543 517 725 244 630 468 663 Fastest Speed 24 | 50 90 100 100 100 100 32 32 32 32 32 32 32 32 32 32 32 32 32 32 27 27 27 27 27 27 27 25 27 27 27 27 24 24 24 24 24 Average Speed 40 | 84 96 101 100 100 120 43 32 32 32 32 32 32 32 32 32 32 32 32 32 28 33 30 27 27 27 27 26 27 27 27 27 25 24 24 24 24 Slowest Speed 250 | 90 250 180 100 100 200 180 32 32 32 32 32 32 32 99 32 32 32 32 32 32 34 34 27 27 27 27 27 27 27 27 27 27 24 24 24 50 Overloaded Moves . | . . . . . . . . . . . . . . . . . . . . . . . . . . . . . . . . . . . . . Propulsion Burnouts . | . . . . . . . . . . . . . . . . . . . . . . . . . . . . . . . . . . . . . Robots Hopped 51 | . . . . . . 3 . 7 . . . . 4 . 20 . . . . 5 . 1 . . . . . . 6 . . . . 3 2 . Cave-ins Triggered . | . . . . . . . . . . . . . . . . . . . . . . . . . . . . . . . . . . . . . Teleports 1 | . . . . . . . . . . . . . . . . . . . . . . . . . 1 . . . . . . . . . . . Exploration Rate (%) 59 | 4 99 97 87 24 98 51 94 31 90 81 83 73 60 89 61 76 55 77 53 49 60 26 62 57 60 68 39 69 38 51 56 87 49 19 16 13 Regions Visited 36 Branch Regions 19 Pre-discovered Areas 6 | . . . . . . . . . 1 . 1 . . . . . . . . . . . . . . 1 . . . . 1 2 . . . . Known Exits Taken 23 | . . . . . 1 . . 1 1 1 1 1 . . 1 1 1 1 1 . . 1 1 1 1 1 . . 1 1 1 1 1 1 1 . Unknown Exits Taken 5 | 1 1 1 1 1 . . . . . . . . . . . . . . . . . . . . . . . . . . . . . . . . Scrap Searched 36 | . . 1 . 1 . . . . 4 1 4 3 . . . 2 4 . 2 . . . 1 5 . 4 . . . 2 1 . 1 . . . Spaces Dug 436 | . . . . . . 22 . 16 6 10 . 1 36 . 41 1 . 1 10 55 . 31 9 10 . 11 46 . 73 8 1 3 2 21 6 16 Terrain Destroyed 960 | . 6 . . . 69 22 . 53 6 74 . 1 36 . 41 1 . 1 22 55 . 31 157 10 . 11 92 . 96 8 50 3 58 21 6 30 Melee 436 | . . . . . . 22 . 16 6 10 . 1 36 . 41 1 . 1 10 55 . 31 9 10 . 11 46 . 73 8 1 3 2 21 6 16 Projectile 3 | . . . . . 2 . . . . . . . . . . . . . . . . . . . . . . . . . . . . . . 1 AOE 521 | . 6 . . . 67 . . 37 . 64 . . . . . . . . 12 . . . 148 . . . 46 . 23 . 49 . 56 . . 13 Actions | -11 -10 -10 -10 -9 -8 -7 -7 -7 -7 -7 -7 -6 -6 -6 -6 -6 -6 -6 -5 -5 -5 -5 -5 -5 -5 -4 -4 -4 -4 -4 -4 -4 -3 -3 -2 -1 --------- Run | Scr Mat Min Exi Min Mat Fac Was Fac Low Low Zio Pro Fac Was Fac Low Low Dat Pro Fac Was Fac Upp Upp Zhi Pro Fac Was Fac Upp Upp War Pro Res Res Acc Total 43161 | 45 1322 611 354 252 2539 3935 275 1998 770 1059 728 570 2862 216 3888 573 291 126 697 4067 106 1680 805 766 232 419 3111 89 3750 763 742 1081 250 719 588 882 Wait 9477 | 1 206 59 11 42 312 1078 49 491 42 135 51 86 449 56 1128 19 34 . 198 1229 11 397 151 336 2 26 873 13 921 212 220 317 2 66 101 153 Move 31859 | 34 975 536 341 196 1804 2708 218 1441 720 903 670 476 2315 159 2622 543 250 108 482 2720 92 1229 636 415 210 378 2133 74 2696 542 516 724 243 624 463 663 Hop 44 | . . . . . . 3 . 5 . . . . 3 . 17 . . . . 5 . 1 . . . . . . 6 . . . . 2 2 . Pick Up 118 | 3 14 4 . . 35 14 2 3 . . . . 5 . 2 . 2 2 . 6 . . . . 2 1 6 1 9 . . 3 . 2 1 1 Fast Attach 93 | 6 4 . . 1 21 11 2 1 . . . . 2 . 3 2 . . . 4 . 2 . . 5 . 12 . 5 . . 7 . . 1 4 Attach 43 | . 2 1 . . 11 8 1 . . . . . 1 . 1 2 2 . 1 2 . . . . . . 1 . 1 . . . . 2 2 5 Detach 12 | . 1 . . . 3 . . 1 . . . . . . . 2 1 . . 1 . . . . . . 1 . . . . 1 . . . 1 Swap 167 | 1 13 1 2 2 48 21 . 7 2 . 6 2 7 1 5 3 1 6 . 5 3 4 1 . 4 . 4 . 6 1 1 6 . . 3 1 Drop 205 | . 16 3 . 1 69 35 3 6 . . . . 6 . 4 1 1 3 . 8 . 2 . . 5 1 7 1 8 . . 14 . . 2 9 Fire 388 | . 86 7 . 9 222 21 . 1 . 11 . . . . . . . . 3 . . . 8 . . . 3 . 4 . 4 . 3 . . 6 Melee 652 | . . . . 1 8 36 . 42 6 10 1 6 53 . 76 1 . 7 13 67 . 37 9 15 4 12 59 . 94 8 1 9 2 23 13 39 Ram . | . . . . . . . . . . . . . . . . . . . . . . . . . . . . . . . . . . . . . Kick . | . . . . . . . . . . . . . . . . . . . . . . . . . . . . . . . . . . . . . Crush . | . . . . . . . . . . . . . . . . . . . . . . . . . . . . . . . . . . . . . Escape Stasis 54 | . . . . . . . . . . . . . 18 . 18 . . . . 18 . . . . . . . . . . . . . . . . Rewire . | . . . . . . . . . . . . . . . . . . . . . . . . . . . . . . . . . . . . . Trap 48 | . 5 . . . 6 . . . . . . . 3 . 12 . . . . 2 . 8 . . . . 12 . . . . . . . . . Miscellaneous 1 | . . . . . . . . . . . . . . . . . . . . . . . . . . 1 . . . . . . . . . . Route ------- -11/Scrapyard -10/Materials (discovered 5 exits: [*Mat x3] / *Min x2) -10/Mines (discovered 3 exits: [*Mat x2] / *Exi) -10/Exiles (discovered 2 exits: [*Min x2]) -9/Mines -8/Materials (discovered 5 exits: *Fac x3 / *Sto x2) -7/Factory (discovered 3 exits: *Fac x2 / *Low) -7/Waste -7/Factory (discovered 3 exits: *Fac / *Low x2) -7/Lower Caves -7/Lower Caves (discovered 2 exits: *Fac / *Zio) -7/Zion -6/Proximity Caves -6/Factory (discovered 4 exits: *Fac x2 / *Low x2) -6/Waste -6/Factory (discovered 5 exits: *Fac x3 / *Low x2) -6/Lower Caves -6/Lower Caves -6/Data Miner -5/Proximity Caves -5/Factory (discovered 3 exits: *Fac / *Upp / Ext) -5/Waste -5/Factory (discovered 4 exits: *Upp x2 / *Ext x2) -5/Upper Caves -5/Upper Caves -5/Zhirov -4/Proximity Caves -4/Factory (discovered 4 exits: *Res / *Upp x2 / Arm) -4/Waste -4/Factory (discovered 4 exits: *Res / *Upp x2 / Arm) -4/Upper Caves -4/Upper Caves -4/Warlord -3/Proximity Caves -3/Research (discovered 3 exits: *Res x3) -2/Research (discovered 3 exits: *Acc x3) -1/Access (discovered 2 exits: *Sur / Com) To Epsilon Eridani History --------- Turn | Location | Event 2 | -11/Scrapyard | Met Revision 17 20 | -11/Scrapyard | Discovered new exit (range 16) 45 | -11/Scrapyard | Entered Materials 308 | -10/Materials | Build established: Mutant 497 | -10/Materials | Discovered new exit (range 9) 680 | -10/Materials | Discovered new exit (range 15) 857 | -10/Materials | Discovered new exit (range 9) 1034 | -10/Materials | Core integrity fell below 50% 1189 | -10/Materials | Discovered new exit (range 16) 1325 | -10/Materials | Discovered new exit (range 16) 1483 | -10/Materials | Entered Mines 1507 | -10/Mines | Received a Rocket Launcher from a helpful Derelict 1788 | -10/Mines | Discovered new exit (range 6) 1923 | -10/Mines | Discovered new exit (range 10) 2083 | -10/Mines | Assisted by bots powering up and referring to "LRC-V3" 2099 | -10/Mines | Deemed a non-threat by the Exiles lab entrance 2099 | -10/Mines | Discovered new exit (range 5) 2110 | -10/Mines | Entered Exiles 2110 | -10/Exiles | Found Exiles lab abandoned 2110 | -10/Exiles | Accompanied by 3 allies 2128 | -10/Exiles | Discovered new exit (range 15) 2443 | -10/Exiles | Discovered new exit (range 11) 2465 | -10/Exiles | Entered Mines 2465 | -9/Mines | Accompanied by 3 allies 2492 | -9/Mines | Assisted by bots powering up and referring to "LRC-V3" 2501 | -9/Mines | Discovered new exit (range 6) 2526 | -9/Mines | Learned location of 1 exit from Materials 2646 | -9/Mines | Learned location of 1 exit from Materials 2728 | -9/Mines | Entered Materials 2728 | -8/Materials | Accompanied by 2 allies 2728 | -8/Materials | Evolved 4 slots: Utility x4 2729 | -8/Materials | Identified exit to Storage 2730 | -8/Materials | Identified exit to Factory 2834 | -8/Materials | Build established: Scavenger-Mutant 3212 | -8/Materials | Garrison activated, responded to threat 3444 | -8/Materials | Garrison activated, responded to threat 3538 | -8/Materials | Destroyed 7 combat bots 3705 | -8/Materials | Discovered exit to Factory (range 7) 4337 | -8/Materials | Destroyed 7 combat bots 4431 | -8/Materials | Core integrity fell below 50% 5128 | -8/Materials | First assault squad dispatched 5154 | -8/Materials | Discovered exit to Factory (range 9) 5493 | -8/Materials | Repaired Enh. Autogun 5847 | -8/Materials | Build established: Mutant 5989 | -8/Materials | Entered Factory 5989 | -7/Factory | Evolved 2 slots: Utility x2 6314 | -7/Factory | Garrison activated, responded to threat 6398 | -7/Factory | Discovered new exit (range 15) 6419 | -7/Factory | Identified exit to Factory 6455 | -7/Factory | Build established: Hacker-Mutant 6844 | -7/Factory | Fabricated Imp. Flight Unit (x1) 6894 | -7/Factory | Fabricated Imp. Flight Unit (x1) 7134 | -7/Factory | Build established: Hacker-Sprinter 7388 | -7/Factory | Fabricated Spear (x2) 7495 | -7/Factory | Discovered exit to Factory (range 12) 7575 | -7/Factory | Discovered new exit (range 16) 8171 | -7/Factory | Fabricated Imp. Cesium-ion Thruster? 8466 | -7/Factory | Sucked down chute 8466 | -7/Factory | Entered Waste 8467 | -7/Waste | Joined by Warlord forces that had cleared the area 8509 | -7/Waste | Discovered new exit (range 16) 8590 | -7/Waste | A Compactor rumbled back to life 8590 | -7/Waste | Spotted C-40 Crusher 8592 | -7/Waste | Identified exit to Factory 8593 | -7/Waste | Entered Factory 8593 | -7/Factory | Accompanied by 1 ally 8933 | -7/Factory | Identified exit to Lower Caves 9417 | -7/Factory | Repaired Broken Mic. Fission Core 9578 | -7/Factory | Discovered exit to Factory (range 13) 9670 | -7/Factory | Entered Lower Caves 9704 | -7/Lower Caves | Identified exit to Lower Caves 9845 | -7/Lower Caves | Learned Factory interactive machine intel 9864 | -7/Lower Caves | Learned 8 Research zone layouts 9864 | -7/Lower Caves | Learned Armory stockpile data 9864 | -7/Lower Caves | Learned Extension stockpile data 9962 | -7/Lower Caves | Entered another Lower Caves area 9970 | -7/Lower Caves | Learned Factory terminal intel 9977 | -7/Lower Caves | Discovered exit to Factory (range 6) 10053 | -7/Lower Caves | Attracted the attention of an 0b10 checkpoint 10222 | -7/Lower Caves | Learned Factory emergency access door positions 10247 | -7/Lower Caves | A Commander dispatched an escort 10248 | -7/Lower Caves | Learned Extension terminal intel 10336 | -7/Lower Caves | Discovered new exit (range 13) 10339 | -7/Lower Caves | Identified exit to Zion 10436 | -7/Lower Caves | Entered Zion 10436 | -7/Zion | Accompanied by 3 allies 10437 | -7/Zion | Commander's escort returned to base 10437 | -7/Zion | Commander's escort returned to base 10437 | -7/Zion | Commander's escort returned to base 10582 | -7/Zion | Visited the Megawrench Repair Shop 10585 | -7/Zion | Megawrench repaired 7 parts 10593 | -7/Zion | Learned location of Quarantine (-2) 10618 | -7/Zion | Gained Derelict followers 10658 | -7/Zion | Discovered new exit (range 11) 10712 | -7/Zion | Identified exit to Proximity Caves 10712 | -7/Zion | Entered Proximity Caves 10712 | -6/Proximity Caves | Accompanied by 4 allies 10712 | -6/Proximity Caves | Spotted B-75 Beast 10716 | -6/Proximity Caves | Learned 4 Factory zone layouts 10831 | -6/Proximity Caves | Learned 4 Factory zone layouts 10955 | -6/Proximity Caves | Discovered exit to Factory (range 13) 10970 | -6/Proximity Caves | Entered Factory 10970 | -6/Factory | Evolved 2 slots: Utility x2 10973 | -6/Factory | Loaded intel: 46 interactive machine locations 10974 | -6/Factory | Loaded intel: 20 terminal locations 11016 | -6/Factory | Fabricated Imp. System Shield (x1) 11023 | -6/Factory | Repaired Spear 11049 | -6/Factory | Fabricated Imp. System Shield (x1) 11134 | -6/Factory | Spotted B-75 Beast 11155 | -6/Factory | Identified exit to Lower Caves 11477 | -6/Factory | Discovered new exit (range 13) 11719 | -6/Factory | Assembled infested ambush trap array 11759 | -6/Factory | Fabricated Adv. Hacking Suite? 11867 | -6/Factory | Local fabrication network quarantined 11870 | -6/Factory | Fabricated Adv. Hacking Suite (x1) 11980 | -6/Factory | Central database locked down 12100 | -6/Factory | Discovered new exit (range 12) 12165 | -6/Factory | Build established: Wizard-Sprinter 12239 | -6/Factory | Repaired System Restoration Module 12337 | -6/Factory | Manually triggered Chute Trap 12337 | -6/Factory | Sucked down chute 12337 | -6/Factory | Entered Waste 12340 | -6/Waste | Spotted C-40 Crusher 12340 | -6/Waste | Spotted C-40 Crusher 12340 | -6/Waste | Spotted C-40 Crusher 12352 | -6/Waste | EMP discharged 12401 | -6/Waste | Spotted C-40 Crusher 12406 | -6/Waste | Spotted C-40 Crusher 12407 | -6/Waste | Spotted C-40 Crusher 12418 | -6/Waste | Discovered new exit (range 13) 12423 | -6/Waste | Identified exit to Factory 12446 | -6/Waste | Entered Factory 12729 | -6/Factory | Discovered new exit (range 12) 13123 | -6/Factory | Discovered new exit (range 12) 13150 | -6/Factory | Discovered exit to Lower Caves (range 5) 13576 | -6/Factory | Found Prototype Processor 13576 | -6/Factory | Identified Exp. Signal Interpreter 13644 | -6/Factory | Discovered new exit (range 15) 14000 | -6/Factory | Fabricated Exp. Sensor Array (x1) 14084 | -6/Factory | Central database locked down 14350 | -6/Factory | Repaired Imp. Datajack 14454 | -6/Factory | Fabricated Adv. Hacking Suite (x1) 14497 | -6/Factory | Fabricated Exp. Cesium-ion Thruster (x1) 14534 | -6/Factory | Local fabrication network quarantined 14546 | -6/Factory | First assault squad dispatched 14660 | -6/Factory | Entered Lower Caves 14674 | -6/Lower Caves | Encountered a Warlord checkpoint 14789 | -6/Lower Caves | Found Alien Artifact 14789 | -6/Lower Caves | Identified Core Expander 14789 | -6/Lower Caves | Installed Core Expander, added new Power slot 14831 | -6/Lower Caves | Learned location of 1 exit from Factory 14861 | -6/Lower Caves | Discovered new exit (range 15) 14866 | -6/Lower Caves | Identified exit to Lower Caves 14867 | -6/Lower Caves | Entered another Lower Caves area 14980 | -6/Lower Caves | Encountered a Warlord checkpoint 14986 | -6/Lower Caves | Discovered new exit (range 6) 14987 | -6/Lower Caves | Identified exit to Data Miner 14988 | -6/Lower Caves | Entered Data Miner 14990 | -6/Data Miner | Discovered new exit (range 6) 14996 | -6/Data Miner | Met Data Miner 15007 | -6/Data Miner | Acquired the access code to Warlord's prototype stash 15011 | -6/Data Miner | Received God Mode back door access code from Data Miner 15022 | -6/Data Miner | Destroyed Data Miner 15026 | -6/Data Miner | Found Ghost Barrier 15029 | -6/Data Miner | Found System Mapper 15032 | -6/Data Miner | Data Conduit disabled 15050 | -6/Data Miner | Identified exit to Proximity Caves 15052 | -6/Data Miner | Entered Proximity Caves 15062 | -5/Proximity Caves | Spotted B-75 Beast 15067 | -5/Proximity Caves | Learned Factory terminal intel 15412 | -5/Proximity Caves | Discovered new exit (range 7) 15413 | -5/Proximity Caves | Identified exit to Factory 15444 | -5/Proximity Caves | Entered Factory 15444 | -5/Factory | Evolved 2 slots: Utility x2 15445 | -5/Factory | Identified exit to Extension 15446 | -5/Factory | Loaded intel: 21 terminal locations 15580 | -5/Factory | Fabricated Mni. Smartbomb Launcher (x1) 15620 | -5/Factory | Fabricated Exp. Utility Shielding (x1) 15660 | -5/Factory | Fabricated Exp. Utility Shielding (x1) 15758 | -5/Factory | Fabricated Adv. Hacking Suite (x1) 15886 | -5/Factory | Discovered new exit (range 9) 15907 | -5/Factory | Identified exit to Upper Caves 15956 | -5/Factory | Discovered new exit (range 10) 16020 | -5/Factory | Fabricated Plasma Lance (x1) 16141 | -5/Factory | Local fabrication network quarantined 17661 | -5/Factory | Manually triggered Chute Trap 17661 | -5/Factory | Sucked down chute 17661 | -5/Factory | Entered Waste 17674 | -5/Waste | Spotted C-40 Crusher 17676 | -5/Waste | EMP discharged 17686 | -5/Waste | Spotted C-40 Crusher 17692 | -5/Waste | Spotted C-40 Crusher 17694 | -5/Waste | Spotted C-40 Crusher 17698 | -5/Waste | Spotted C-40 Crusher 17703 | -5/Waste | Discovered new exit (range 16) 17707 | -5/Waste | Identified exit to Factory 17708 | -5/Waste | Entered Factory 17745 | -5/Factory | 2 allies followed down the chute 17790 | -5/Factory | Repaired Exp. Sensor Array 17963 | -5/Factory | Build established: Wizard-Mutant 17975 | -5/Factory | Fabricated Inertial Stasis Machine (x1) 18024 | -5/Factory | Fabricated Mni. Fusion Reactor (x1) 18072 | -5/Factory | Fabricated Exp. System Shield (x1) 18310 | -5/Factory | Local fabrication network quarantined 18483 | -5/Factory | Build established: Wizard-Sprinter 18585 | -5/Factory | Entered Upper Caves 18598 | -5/Upper Caves | Encountered a Warlord checkpoint 18759 | -5/Upper Caves | Learned Factory garrison access intel 18907 | -5/Upper Caves | Attracted the attention of an 0b10 checkpoint 18918 | -5/Upper Caves | Discovered new exit (range 14) 18948 | -5/Upper Caves | Identified exit to Upper Caves 18950 | -5/Upper Caves | Entered another Upper Caves area 18960 | -5/Upper Caves | Acquired the password to a Derelict Tinkerer's latest research 19390 | -5/Upper Caves | Discovered new exit (range 14) 19435 | -5/Upper Caves | Identified exit to Zhirov 19436 | -5/Upper Caves | Entered Zhirov 19438 | -5/Zhirov | Discovered new exit (range 3) 19443 | -5/Zhirov | Met Zhirov 19458 | -5/Zhirov | Zhirov requested help retrieving the SGEMP Prototype 19464 | -5/Zhirov | Found Alien Artifact 19464 | -5/Zhirov | Identified Integrated Dissipator 19464 | -5/Zhirov | Installed Integrated Dissipator, increased core heat dissipation (+2%) 19470 | -5/Zhirov | Found Alien Artifact 19470 | -5/Zhirov | Identified Transdimensional Reconstructor 19470 | -5/Zhirov | Warped through subspace 19470 | -5/Zhirov | Identified exit to Proximity Caves 19519 | -5/Zhirov | Entered Proximity Caves 19669 | -4/Proximity Caves | Discovered new exit (range 18) 19673 | -4/Proximity Caves | Identified exit to Factory 19679 | -4/Proximity Caves | Entered Factory 19679 | -4/Factory | Evolved 2 slots: Utility x2 19680 | -4/Factory | Identified exit to Armory 19681 | -4/Factory | Loaded intel: 4 garrison access locations 19725 | -4/Factory | Identified exit to Upper Caves 19790 | -4/Factory | Fabricated Plasma Lance (x1) 19830 | -4/Factory | Fabricated Imp. Fusion Compressor (x1) 19853 | -4/Factory | Fabricated Inertial Stasis Machine (x1) 19971 | -4/Factory | Local fabrication network quarantined 20062 | -4/Factory | Repaired Mic. Fission Core 20112 | -4/Factory | Repaired Mni. Fusion Reactor 20133 | -4/Factory | Repaired Imp. Datajack 21018 | -4/Factory | Discovered new exit (range 13) 21027 | -4/Factory | Identified exit to Research 21230 | -4/Factory | Spotted B-86 Titan 21327 | -4/Factory | Manually triggered Chute Trap 21327 | -4/Factory | Sucked down chute 21327 | -4/Factory | Entered Waste 21330 | -4/Waste | 3 allies followed down the chute 21334 | -4/Waste | Spotted C-40 Crusher 21335 | -4/Waste | Spotted C-40 Crusher 21343 | -4/Waste | Spotted C-40 Crusher 21344 | -4/Waste | Spotted C-40 Crusher 21348 | -4/Waste | Spotted C-40 Crusher 21349 | -4/Waste | Discovered new exit (range 10) 21360 | -4/Waste | Identified exit to Factory 21362 | -4/Waste | Entered Factory 21362 | -4/Factory | Accompanied by 1 ally 21603 | -4/Factory | Repaired Lgt. Quantum Reactor 22133 | -4/Factory | Fabricated Mni. Fusion Reactor? 22252 | -4/Factory | Fabricated Quantum Shading Machine (x1) 22256 | -4/Factory | Local fabrication network quarantined 22359 | -4/Factory | Discovered exit to Research (range 14) 22653 | -4/Factory | Repaired Mni. Fusion Reactor 22869 | -4/Factory | Repaired Exp. Utility Shielding 22899 | -4/Factory | Repaired Exp. Cesium-ion Thruster 22930 | -4/Factory | Repaired Cld. Nuclear Pulse Thruster 22960 | -4/Factory | Repaired Mni. Smartbomb Launcher 23066 | -4/Factory | Spotted B-86 Titan 23287 | -4/Factory | Entered Upper Caves 23367 | -4/Upper Caves | Learned Research garrison access intel 23662 | -4/Upper Caves | Discovered new exit (range 9) 23665 | -4/Upper Caves | Identified exit to Upper Caves 23667 | -4/Upper Caves | Entered another Upper Caves area 23876 | -4/Upper Caves | Spotted B-86 Titan 24023 | -4/Upper Caves | Learned Research stockpile data 24036 | -4/Upper Caves | Discovered new exit (range 10) 24038 | -4/Upper Caves | Identified exit to Warlord 24040 | -4/Upper Caves | Entered Warlord 24050 | -4/Warlord | System corruption cleaned by Quarantine Array 24076 | -4/Warlord | Learned location of Armory (-4) 24076 | -4/Warlord | Learned location of Command (-1) 24076 | -4/Warlord | Learned Research trap positions 24076 | -4/Warlord | Learned 4 Access zone layouts 24076 | -4/Warlord | Learned Research terminal intel 24117 | -4/Warlord | Visited the Vortex Lab 24120 | -4/Warlord | Met EX-DEC 24129 | -4/Warlord | Warlord's base attacked by MAIN.C 24133 | -4/Warlord | Found Prototype Energy Cannon 24168 | -4/Warlord | Found System Mapper 24178 | -4/Warlord | Found Prototype Device 24178 | -4/Warlord | Identified Thermal Barrier 24182 | -4/Warlord | Found Prototype Processor 24182 | -4/Warlord | Identified Spectral Analyzer 24197 | -4/Warlord | Met Warlord 24277 | -4/Warlord | P-80 Master assimilated allied PL-LIK(Y) 24279 | -4/Warlord | P-80 Master assimilated allied A2-RTN(Y) 24416 | -4/Warlord | Opened side exit 24479 | -4/Warlord | Warlord forces counterattacked 24582 | -4/Warlord | Discovered new exit (range 14) 24585 | -4/Warlord | Identified exit to Proximity Caves 24589 | -4/Warlord | Entered Proximity Caves 24644 | -3/Proximity Caves | Spotted B-86 Titan 24658 | -3/Proximity Caves | Discovered exit to Research (range 12) 24661 | -3/Proximity Caves | Entered Research 24661 | -3/Research | Evolved 2 slots: Utility x1, Weapon x1 24663 | -3/Research | Loaded intel: 107 trap records 24665 | -3/Research | Loaded intel: 19 terminal locations 24666 | -3/Research | Loaded intel: 4 garrison access locations 24847 | -3/Research | Identified exit to Research 24849 | -3/Research | Found Enh. Force Lance 24938 | -3/Research | Spotted B-86 Titan 24940 | -3/Research | Entered another Research area 24940 | -2/Research | Warlord forces began assault on 0b10 24940 | -2/Research | Evolved 2 slots: Utility x1, Weapon x1 24948 | -2/Research | Identified exit to Access 25050 | -2/Research | Research machine network offline 25119 | -2/Research | Found Prototype Slashing Weapon 25119 | -2/Research | Identified Vibroblade 25121 | -2/Research | Found Vibroblade 25131 | -2/Research | Met up with Warlord 25194 | -2/Research | Entered Access 25194 | -1/Access | Evolved 2 slots: Weapon x2 25195 | -1/Access | Identified exit to Command 25197 | -1/Access | Identified BFG-9k Vortex Edition 25260 | -1/Access | Spotted B-99 Colossus 25289 | -1/Access | Identified exit to Surface 25631 | -1/Access | Released all parts (20) 25631 | *** | Escaped! Last Messages --------------- 25630_ Mni. Fusion Reactor destroyed. 25631_ Released Lgt. Quantum Reactor. 25631_ Released Inertial Stasis Machine. 25631_ Released Med. Storage Unit. 25631_ Released Imp. Diametric Drive. 25631_ Released Exp. System Shield. 25631_ Released System Mapper. 25631_ Released Adv. Hacking Suite. 25631_ Released Exp. Signal Interpreter. 25631_ Released Ghost Barrier. 25631_ Released Adv. Hacking Suite. 25631_ Released Exp. Cesium-ion Thruster. 25631_ Released Quantum Shading Machine. 25631_ Released System Mapper. 25631_ Released Exp. Sensor Array. 25631_ Released Centrium Light Armor Plating. 25631_ Released Lrg. Storage Unit. 25631_ Released BFG-9k Vortex Edition. 25631_ Released Adv. Reaction Control System. 25631_ Released Exp. Utility Shielding. Map ----- +----------------------------------------------------+ | # """ + #??# #??????? | | # # #??# #??????? | | # # #?## #??????? | | ############## ###"########++######+##??????? | | #####?????# ^ #????# #???????? | | ??????????# #????# #???????? | | ??????????# #################### #????# #???????? | | ??????????# ##################"# #??### ###?????? | | ??????????# # #"%##?# #?????? | | ??????????# # # ### #?????? | | ??????????# # # #?????? | | ??????????# # !=! # ### #?????? | | ??????????# # !=! #####?# #?????? | | ??????????# # !=! #?????###"##"#????? | | ??????????+ / ] ! #???????###?##????? | | ??????????# ###################?????????????????? | | ??????????# #???????????????????????????????????? | | ?????####?# #??????????????????????????????????# | | ?????# ?# #?????###??????????????????????????# | | ?????# # ####### #####################??????# | | ?????# [# """T""" """" #??????# | | ?????+ # """ """ """" #??????# | | ?????# ==# ! """" ######### | | ?????# = # !!!! """" | | ?????# # ==*!] """" | | ?????# !# h !@= " | | ?????# # k g h ! """ | | ?????#### # %k%g """" ######### | | ????????# # R g """" #???????? | | ????????# # %Rkugu """" #???????? | | ????????### %####### #####################???????? | | ??????????# ###???####??????#"""""""""""#???????? | | ??????????# ################# """"T"""" ###?????? | | ??????????# ## # ##????? | | ??????????# ## [ # "#????? | | ??????????# ## # ##????? | | ??????????# ## / ! #?????? | | ??????????# ## # #?????? | | ?????????## ## = # #?????? | | ????###### ###+#############+############?????? | | ?? " #?????????????? | | T" #?????????????? | | ### ##### ################### #?????????????? | | ??#??????##+###?????????????????# #?????????????? | | ????????????????????????????????# #?????????????? | | ????????????????????????????????# #?????????????? | | ????????????????????############# #?????????????? | | ???????????????????? # #?????????????? | | ?????????????????????????????????????????????????? | | ?????????????????????????????????????????????????? | +----------------------------------------------------+ Best States ------------- Heat Dissipation 72 Coolant Potential 65 Energy Generation 49 Energy Capacity 265 Matter Stores 300 Matter Capacity 300 Sight Range 16 Robot Scan Range 30 Terrain Scan Density 10 Jamming Range 16 Additional Mass Support 36 EM Shielding 3 Armor Coverage 225 Resistance: EM 25 Utility Shielding 90 Evasion (%) 65 Targeting Accuracy 6 Recoil Reduction 1 Offensive Hacking 90 Defensive Hacking 36 Item Schematics ----------------- Imp. Flight Unit | -8/Materials | Hacked Spear | -7/Factory | Hacked Imp. Cesium-ion Thruster | -7/Factory | Hacked Imp. Hacking Suite | -7/Factory | Hacked Imp. System Shield | -7/Factory | Hacked Adv. Hacking Suite | -6/Factory | Hacked Exp. Cesium-ion Thruster | -6/Factory | Hacked Exp. Sensor Array | -6/Factory | Hacked Kinetic Spear | -6/Data Miner | Free Exp. Utility Shielding | -5/Factory | Hacked Mni. Smartbomb Launcher | -5/Factory | Hacked Mni. Fusion Reactor | -5/Factory | Hacked Plasma Lance | -5/Factory | Hacked Exp. System Shield | -5/Factory | Hacked Exp. Hacking Suite | -5/Factory | Hacked Exp. Melee Analysis Suite | -5/Factory | Hacked Imp. Fusion Compressor | -5/Factory | Hacked Inertial Stasis Machine | -5/Factory | Hacked Quantum Shading Machine | -4/Factory | Hacked Adv. Reaction Control System | -4/Factory | Hacked Adv. Powered Armor | -4/Factory | Hacked Robot Schematics ------------------ None Fabricated ------------ Imp. Flight Unit | x1 | -7/Factory Imp. Flight Unit | x1 | -7/Factory Spear | x2 | -7/Factory Imp. Cesium-ion Thruster | x1 | -7/Factory Imp. System Shield | x1 | -6/Factory Imp. System Shield | x1 | -6/Factory Adv. Hacking Suite | x1 | -6/Factory Adv. Hacking Suite | x1 | -6/Factory Exp. Sensor Array | x1 | -6/Factory Adv. Hacking Suite | x1 | -6/Factory Exp. Cesium-ion Thruster | x1 | -6/Factory Mni. Smartbomb Launcher | x1 | -5/Factory Exp. Utility Shielding | x1 | -5/Factory Exp. Utility Shielding | x1 | -5/Factory Adv. Hacking Suite | x1 | -5/Factory Plasma Lance | x1 | -5/Factory Inertial Stasis Machine | x1 | -5/Factory Mni. Fusion Reactor | x1 | -5/Factory Exp. System Shield | x1 | -5/Factory Plasma Lance | x1 | -4/Factory Imp. Fusion Compressor | x1 | -4/Factory Inertial Stasis Machine | x1 | -4/Factory Mni. Fusion Reactor | x1 | -4/Factory Quantum Shading Machine | x1 | -4/Factory Alien Tech Used ----------------- Core Expander Integrated Dissipator Transdimensional Reconstructor Achievements -------------- None Challenges ------------ None Game ------ Seed NullDecoderMace Manual? 0 Play Time 04:17:55 Cumulative 863.0 hours Start 2020.05.15 @ 18:13:59 End 2020.05.17 @ 17:24:16 Sessions 9 Manual Loads 0 Difficulty Rogue Special Mode None Game No. 712 Rogue 672 Adventurer 40 Explorer 0 Win Type 0 Total 87 Types 53/2/22/2/1/3/4 Lore% 93 Gallery% 97 Achievement% 79 Wizard Run 0 Options --------- ASCII 0 Keyboard 0 Movement Numpad Keybinds 0 Fullscreen 0 Font 16/Terminus Map View 76x50 Tactical HUD 1 Map Filters NONE Filters NONE Steam 1 RUN: 19d7e206-7f21-4d06-9830-8b63ea7d368b